bitfinex-derivatives/quotes_BTCF0:USTF0_20241010
["timestamp","ask_amount","ask_price","bid_price","bid_amount"]
[1728579156870,0.0234,60473.0,60472.0,0.082761]
[1728579157371,0.0144,60473.0,60472.0,0.082761]
[1728579157673,0.0134,60473.0,60472.0,0.082761]
[1728579158570,0.0084,60473.0,60472.0,0.082761]
[1728579159363,0.1984,60473.0,60472.0,0.082761]
[1728579159960,0.1904,60473.0,60472.0,0.082761]
[1728579160166,0.1914,60473.0,60472.0,0.082761]
[1728579162269,0.27416,60473.0,60472.0,0.082761]
[1728579162478,0.082773,60466.0,60465.0,0.082769]
[1728579164174,0.082773,60463.0,60462.0,0.083174]
[1728579164368,0.382773,60463.0,60462.0,0.0004]
[1728579165474,0.27277,60466.0,60465.0,0.082767]
[1728579165864,0.19,60466.0,60465.0,0.082767]
[1728579166069,0.195,60466.0,60465.0,0.082767]
[1728579166272,0.387769,60466.0,60463.0,0.0487]
[1728579166572,0.082773,60463.0,60462.0,0.083174]
[1728579166776,0.273773,60463.0,60462.0,0.083174]
[1728579167574,0.003,60463.0,60462.0,0.0004]
[1728579167876,0.003,60463.0,60462.0,0.083175]
[1728579169074,0.009,60463.0,60462.0,0.083175]
[1728579169870,0.006,60463.0,60462.0,0.083175]
[1728579170176,0.19,60466.0,60462.0,0.0004]
[1728579170373,0.292769,60466.0,60465.0,0.082771]
[1728579170571,0.19,60466.0,60465.0,0.082771]
[1728579170970,0.443566,60469.0,60468.0,0.082766]
[1728579171170,0.633566,60469.0,60468.0,0.082766]
[1728579171371,0.5508,60469.0,60468.0,0.082766]
[1728579171577,0.5508,60469.0,60465.0,0.082769]
[1728579171578,0.08277,60466.0,60465.0,0.082769]
[1728579171780,0.39277,60466.0,60465.0,0.082769]
[1728579173182,0.39377,60466.0,60465.0,0.082769]
[1728579173474,0.39777,60466.0,60465.0,0.082769]
[1728579173685,0.082772,60464.0,60463.0,0.06603562]
[1728579173977,0.082773,60463.0,60462.0,0.0004]
[1728579174176,0.192773,60463.0,60462.0,0.0004]
[1728579176692,0.199773,60463.0,60462.0,0.0004]
[1728579177285,0.203773,60463.0,60462.0,0.0004]
[1728579177581,0.204773,60463.0,60462.0,0.0004]
[1728579177784,0.700933,60463.0,60462.0,0.0004]
[1728579177984,0.890933,60463.0,60462.0,0.0004]
[1728579178188,1.251733,60463.0,60462.0,0.0004]
[1728579178666,1.247733,60463.0,60462.0,0.0004]
[1728579178869,1.252733,60463.0,60462.0,0.0004]
[1728579179278,0.082781,60458.0,60449.0,0.0497]
[1728579179583,0.082791,60451.0,60450.0,0.08279]
[1728579179774,0.202791,60451.0,60450.0,0.08279]
[1728579180375,0.392791,60451.0,60450.0,0.08279]
[1728579180681,0.082791,60450.0,60449.0,0.0497]
[1728579180893,0.082791,60450.0,60449.0,0.082792]
[1728579180894,0.203191,60450.0,60449.0,0.082792]
[1728579182884,0.082794,60448.0,60446.0,0.082796]
[1728579183185,0.082795,60447.0,60446.0,0.082796]
[1728579183493,0.192795,60447.0,60446.0,0.082796]
[1728579184087,0.082795,60447.0,60446.0,0.082796]
[1728579184490,0.083191,60450.0,60449.0,0.082792]
[1728579184686,0.273191,60450.0,60449.0,0.082792]
[1728579185985,0.273191,60450.0,60445.0,0.3608]
[1728579185986,0.082797,60446.0,60445.0,0.3608]
[1728579186286,0.392797,60446.0,60445.0,0.3608]
[1728579187380,0.392797,60446.0,60445.0,0.443598]
[1728579188185,0.392797,60446.0,60445.0,0.3608]
[1728579188388,0.392797,60446.0,60445.0,0.443598]
[1728579189389,0.082802,60444.0,60443.0,0.0828]
[1728579189593,0.082802,60442.0,60441.0,0.0534]
[1728579189787,0.202802,60442.0,60441.0,0.0534]
[1728579190489,0.082803,60441.0,60437.0,0.0496]
[1728579190695,0.082813,60437.0,60436.0,0.082809]
[1728579190888,0.272813,60437.0,60436.0,0.082809]
[1728579192195,0.23138104,60437.0,60436.0,0.07733602]
[1728579192493,0.35138104,60437.0,60429.0,0.08248252]
[1728579192698,0.082824,60427.0,60426.0,0.082824]
[1728579192998,0.272823,60427.0,60426.0,0.082824]
[1728579193295,0.382823,60427.0,60426.0,0.082824]
[1728579194182,0.383823,60427.0,60426.0,0.082824]
[1728579194599,0.301,60427.0,60426.0,0.082824]
[1728579194795,0.001,60427.0,60426.0,0.272824]
[1728579195998,0.084823,60427.0,60426.0,0.082824]
[1728579196405,0.082828,60424.0,60419.0,0.5177]
[1728579196701,0.272832,60420.0,60419.0,0.598934]
[1728579197405,0.082828,60423.0,60422.0,0.082829]
[1728579197794,0.19,60424.0,60423.0,0.082828]
[1728579198097,0.272827,60424.0,60423.0,0.082828]
[1728579198297,0.273827,60424.0,60423.0,0.082828]
[1728579199401,0.082832,60421.0,60420.0,0.08283]
[1728579199609,0.272832,60421.0,60420.0,0.08283]
[1728579200195,0.372832,60421.0,60420.0,0.08283]
[1728579200798,0.373832,60421.0,60420.0,0.08283]
[1728579200999,0.373832,60421.0,60420.0,0.44363]
[1728579201305,0.373832,60421.0,60420.0,0.08283]
[1728579201306,0.273832,60421.0,60420.0,0.08283]
[1728579202303,0.191,60421.0,60420.0,0.08283]
[1728579202505,0.192,60421.0,60420.0,0.08283]
[1728579202805,0.314831,60421.0,60420.0,0.08283]
[1728579203001,0.232,60421.0,60420.0,0.08283]
[1728579203203,0.192,60421.0,60420.0,0.08283]
[1728579203603,0.274831,60421.0,60420.0,0.08283]
[1728579203905,0.192,60421.0,60420.0,0.08283]
[1728579205208,0.274831,60421.0,60420.0,0.08283]
[1728579205509,0.192,60421.0,60420.0,0.08283]
[1728579205707,0.274831,60421.0,60420.0,0.08283]
[1728579206503,0.394831,60421.0,60420.0,0.08283]
[1728579208213,0.274831,60421.0,60420.0,0.08283]
[1728579208405,0.192,60421.0,60420.0,0.08283]
[1728579208601,0.274831,60421.0,60420.0,0.08283]
[1728579211606,0.082832,60420.0,60419.0,0.07488252]
[1728579211803,0.082832,60420.0,60401.0,0.3608]
[1728579211804,0.082839,60415.0,60410.0,0.09908055]
[1728579212112,0.082839,60415.0,60405.0,0.082851]
[1728579212113,0.082852,60406.0,60405.0,0.082851]
[1728579212412,1.09668,60403.0,60399.0,0.09908055]
[1728579212610,0.082875,60389.0,60388.0,0.19836365]
[1728579212801,0.182875,60389.0,60388.0,0.12518142]
[1728579213000,0.272875,60389.0,60388.0,0.12518142]
[1728579213208,0.082877,60387.0,60386.0,0.00248406]
[1728579213511,0.3608,60387.0,60386.0,0.082879]
[1728579214107,0.3608,60393.0,60392.0,0.082871]
[1728579215605,0.3618,60393.0,60392.0,0.082871]
[1728579216213,0.3628,60393.0,60392.0,0.082871]
[1728579218717,0.3628,60393.0,60392.0,0.272871]
[1728579219506,0.3628,60393.0,60392.0,0.39686706]
[1728579220014,0.36164,60405.0,60392.0,1.369631]
[1728579220217,0.3608,60405.0,60404.0,0.082854]
[1728579221322,0.3608,60405.0,60404.0,0.272854]
[1728579221515,0.3628,60405.0,60404.0,0.272854]
[1728579223321,0.3638,60405.0,60404.0,0.272854]
[1728579224419,0.003,60405.0,60404.0,1.730294]
[1728579224611,0.3608,60416.0,60415.0,0.082839]
[1728579224817,0.3608,60416.0,60415.0,0.272839]
[1728579225027,0.3608,60421.0,60415.0,0.272839]
[1728579225221,0.3608,60421.0,60420.0,0.272832]
[1728579225421,0.3608,60421.0,60420.0,0.082832]
[1728579226213,0.19,60426.0,60417.0,0.2404]
[1728579226420,0.3608,60427.0,60426.0,0.082824]
[1728579227115,0.3605,60427.0,60426.0,0.082824]
[1728579227712,0.3608,60434.0,60426.0,0.082824]
[1728579227713,0.3608,60434.0,60433.0,0.082814]
[1728579228514,0.443613,60434.0,60433.0,0.082814]
[1728579229117,0.3608,60434.0,60433.0,0.082814]
[1728579229419,0.19,60439.0,60438.0,0.082807]
[1728579229621,0.5508,60439.0,60438.0,0.082807]
[1728579229824,0.3608,60439.0,60438.0,0.082807]
[1728579231420,0.5508,60439.0,60431.0,0.0509]
[1728579231624,0.272816,60432.0,60431.0,0.133716]
[1728579231822,0.19,60432.0,60431.0,0.133716]
[1728579232533,0.1742,60432.0,60431.0,0.133716]
[1728579233032,0.1752,60432.0,60431.0,0.133716]
[1728579233329,0.258016,60432.0,60431.0,0.133716]
[1728579233723,0.1752,60432.0,60431.0,0.133716]
[1728579233921,0.3608,60439.0,60438.0,0.082807]
[1728579234122,0.3608,60439.0,60438.0,0.272807]
[1728579234724,0.3608,60439.0,60438.0,0.371107]
[1728579235028,0.008,60439.0,60438.0,0.182107]
[1728579235223,0.008,60439.0,60438.0,0.23144802]
[1728579235422,0.008,60439.0,60438.0,0.182107]
[1728579236918,0.001,60439.0,60438.0,0.082807]
[1728579237130,0.0423764,60439.0,60438.0,0.082807]
[1728579237330,0.08281,60437.0,60431.0,0.0509]
[1728579237635,0.19622781,60437.0,60436.0,0.08281]
[1728579237823,0.082814,60434.0,60433.0,0.082814]
[1728579238024,0.30480313,60434.0,60433.0,0.082814]
[1728579239726,0.30580313,60434.0,60433.0,0.082814]
[1728579240230,0.30580313,60434.0,60433.0,0.084814]
[1728579240418,0.30580313,60434.0,60433.0,0.002]
[1728579240822,0.082816,60432.0,60430.0,0.082818]
[1728579241030,0.5827911,60431.0,60424.0,0.0503]
[1728579241225,0.19,60428.0,60427.0,0.082823]
[1728579241531,0.0319911,60428.0,60424.0,0.0503]
[1728579241731,0.03199158,60427.0,60424.0,0.0503]
[1728579241934,0.55787581,60431.0,60424.0,0.0503]
[1728579241935,0.47505781,60431.0,60424.0,0.0503]
[1728579242227,0.03199158,60430.0,60429.0,0.08282]
[1728579242432,0.22822739,60430.0,60429.0,0.08282]
[1728579242622,0.11480958,60430.0,60429.0,0.08282]
[1728579243427,0.03199158,60430.0,60424.0,0.0503]
[1728579243736,0.03199169,60429.0,60428.0,0.082821]
[1728579244438,0.11481169,60429.0,60428.0,0.082821]
[1728579244838,0.03199169,60429.0,60428.0,0.004]
[1728579245136,0.14535852,60429.0,60428.0,0.086821]
[1728579245330,0.11336683,60429.0,60428.0,0.082821]
[1728579245532,0.3608,60436.0,60428.0,0.082821]
[1728579245533,0.36176001,60436.0,60428.0,0.084821]
[1728579245738,0.3608,60436.0,60435.0,0.272812]
[1728579246733,0.3608,60444.0,60443.0,0.082801]
[1728579246936,0.443991,60450.0,60443.0,0.082801]
[1728579247129,0.553991,60450.0,60449.0,0.082792]
[1728579248143,0.3612,60450.0,60449.0,0.082792]
[1728579248635,0.0114,60450.0,60449.0,0.444592]
[1728579249428,0.0194,60450.0,60449.0,0.444592]
[1728579249631,0.5508,60463.0,60449.0,0.49393302]
[1728579249934,0.36168,60463.0,60461.0,0.082775]
[1728579250132,0.082775,60462.0,60461.0,0.082775]
[1728579250336,0.3608,60463.0,60462.0,0.082775]
[1728579251431,0.3618,60463.0,60462.0,0.082775]
[1728579251841,0.3638,60463.0,60462.0,0.082775]
[1728579252039,0.3768,60463.0,60462.0,0.083775]
[1728579252536,0.3748,60463.0,60462.0,0.083775]
[1728579252735,0.3848,60463.0,60462.0,0.084775]
[1728579253341,0.467573,60463.0,60462.0,0.084775]
[1728579253842,0.3848,60463.0,60462.0,0.084775]
[1728579254230,0.01,60463.0,60462.0,0.445575]
[1728579254635,0.01,60463.0,60462.0,0.941735]
[1728579255135,0.01,60463.0,60462.0,0.49499559]
[1728579255334,0.01,60463.0,60462.0,0.445575]
[1728579256543,0.082762,60472.0,60471.0,0.082762]
[1728579257046,0.082765,60470.0,60468.0,0.3608]
[1728579257252,0.19,60469.0,60462.0,0.3628]
[1728579257437,0.082773,60463.0,60462.0,0.002]
[1728579257743,0.082784,60455.0,60454.0,0.06569083]
[1728579258043,0.19,60455.0,60449.0,0.0004]
[1728579258350,0.0004,60455.0,60454.0,0.082786]
[1728579258545,0.082787,60453.0,60450.0,0.272791]
[1728579258751,0.082789,60452.0,60451.0,0.082789]
[1728579259146,0.082789,60452.0,60449.0,0.36232]
[1728579259336,0.082791,60450.0,60449.0,0.3612]
[1728579260336,0.26592254,60450.0,60449.0,0.22957598]
[1728579260738,0.18313154,60450.0,60447.0,0.082794]
[1728579260943,0.22497938,60449.0,60445.0,0.0549]
[1728579261246,0.18273154,60448.0,60447.0,0.082795]
[1728579261946,0.12334806,60448.0,60447.0,0.082795]
[1728579262450,0.12334806,60448.0,60447.0,0.083795]
[1728579263447,0.12334806,60448.0,60447.0,1.370075]
[1728579263650,0.18273154,60448.0,60447.0,1.370075]
[1728579264458,0.39613183,60448.0,60447.0,0.001]
[1728579264645,0.45551038,60448.0,60447.0,0.001]
[1728579264843,0.37272054,60448.0,60445.0,0.007]
[1728579265148,0.272794,60448.0,60447.0,0.002]
[1728579265447,0.42455381,60448.0,60447.0,0.008]
[1728579266151,0.42455381,60448.0,60447.0,0.006]
[1728579266339,0.6359156,60448.0,60447.0,0.006]
[1728579267137,0.42455381,60448.0,60447.0,0.006]
[1728579267350,0.273794,60448.0,60447.0,0.006]
[1728579267548,0.082797,60446.0,60445.0,0.05244708]
[1728579268453,0.19,60448.0,60444.0,0.04942059]
[1728579268454,0.193,60448.0,60444.0,0.04942059]
[1728579268653,0.003,60448.0,60447.0,0.082795]
[1728579269038,0.443593,60449.0,60447.0,0.082795]
[1728579269642,0.083794,60448.0,60447.0,0.082795]
[1728579270961,0.001,60448.0,60447.0,0.443595]
[1728579271750,0.0004,60450.0,60449.0,0.082792]
[1728579271969,0.0004,60450.0,60449.0,0.272792]
[1728579273450,0.0004,60450.0,60449.0,0.082792]
[1728579273644,0.0004,60450.0,60449.0,0.13227582]
[1728579274154,0.0004,60450.0,60449.0,0.082792]
[1728579274656,0.04094334,60450.0,60449.0,0.086792]
[1728579275543,0.05121846,60450.0,60449.0,0.086792]
[1728579275745,0.0917618,60450.0,60449.0,0.086792]
[1728579275946,0.1745528,60450.0,60449.0,0.004]
[1728579276842,0.23493786,60450.0,60449.0,0.004]
[1728579277251,0.23393786,60450.0,60449.0,0.004]
[1728579277452,0.23593786,60450.0,60449.0,0.004]
[1728579278162,0.23595453,60450.0,60449.0,0.00293]
[1728579278766,0.082799,60446.0,60445.0,0.082798]
[1728579278954,0.082801,60444.0,60443.0,0.082801]
[1728579279156,0.36417947,60444.0,60443.0,0.082801]
[1728579279454,0.23356453,60444.0,60443.0,0.082801]
[1728579279655,0.23356253,60444.0,60443.0,0.082801]
[1728579279860,0.082805,60441.0,60440.0,0.082805]
[1728579280059,0.27011946,60441.0,60440.0,0.082805]
[1728579280263,0.41296456,60441.0,60440.0,0.082805]
[1728579280562,0.23357758,60441.0,60440.0,0.082805]
[1728579282257,0.23357758,60441.0,60431.0,0.0024813]
[1728579282258,0.082814,60435.0,60434.0,0.082813]
[1728579282457,0.082814,60435.0,60431.0,0.0024813]
[1728579282658,0.633616,60432.0,60431.0,0.0852973]
[1728579283759,0.5508,60432.0,60431.0,0.0852973]
[1728579284068,0.633616,60432.0,60431.0,0.0992973]
[1728579284257,0.633616,60432.0,60431.0,0.0164813]
[1728579285261,0.633616,60432.0,60431.0,0.0244813]
[1728579285457,0.634616,60432.0,60431.0,0.0244813]
[1728579285653,1.731056,60432.0,60431.0,0.0244813]
[1728579285859,0.082823,60427.0,60426.0,0.06408667]
[1728579286053,0.633623,60427.0,60426.0,0.06408667]
[1728579287654,0.443623,60427.0,60426.0,0.06408667]
[1728579288153,0.444623,60427.0,60426.0,0.06508667]
[1728579289555,0.634623,60427.0,60426.0,0.06508667]
[1728579289859,0.634623,60427.0,60426.0,0.001]
[1728579290263,0.635623,60427.0,60426.0,0.001]
[1728579290455,0.745623,60427.0,60426.0,0.001]
[1728579290857,0.082832,60420.0,60419.0,0.082833]
[1728579291165,0.272832,60420.0,60419.0,0.082833]
[1728579292456,0.272832,60420.0,60419.0,0.083833]
[1728579292457,0.273832,60420.0,60419.0,0.083833]
[1728579293157,0.272832,60420.0,60419.0,0.083833]
[1728579293559,0.082832,60420.0,60419.0,0.086833]
[1728579294160,0.27283,60423.0,60422.0,0.082829]
[1728579294460,0.37283,60423.0,60422.0,0.082829]
[1728579294959,0.00084,60427.0,60426.0,0.082824]
[1728579295155,0.08282,60429.0,60428.0,0.082818]
[1728579295665,0.082817,60433.0,60432.0,0.082814]
[1728579295871,0.443617,60433.0,60432.0,0.082814]
[1728579296572,0.3608,60433.0,60432.0,0.272814]
[1728579296862,0.3618,60433.0,60432.0,0.272814]
[1728579298159,0.3618,60433.0,60432.0,0.084814]
[1728579298764,0.3628,60433.0,60432.0,0.082814]
[1728579298967,0.3628,60433.0,60429.0,0.055]
[1728579298968,0.445614,60433.0,60429.0,0.055]
[1728579299273,0.272818,60430.0,60429.0,0.137819]
[1728579299666,0.272818,60430.0,60429.0,0.082819]
[1728579299871,0.082827,60426.0,60425.0,0.082823]
[1728579300066,0.59218651,60426.0,60425.0,0.082823]
[1728579301660,0.59318651,60426.0,60425.0,0.082823]
[1728579302671,0.59318651,60426.0,60422.0,0.15340099]
[1728579302672,0.082828,60423.0,60422.0,0.134329]
[1728579303259,0.082828,60423.0,60419.0,0.13228072]
[1728579303469,0.19,60421.0,60420.0,0.13227872]
[1728579303774,0.19,60421.0,60420.0,0.13229555]
[1728579304270,0.19,60421.0,60420.0,0.082831]
[1728579304872,0.3608,60426.0,60423.0,0.082825]
[1728579304873,0.082827,60424.0,60423.0,0.082825]
[1728579305261,0.082833,60421.0,60420.0,0.08283]
[1728579305571,0.082833,60421.0,60420.0,0.08483]
[1728579305870,0.083833,60421.0,60420.0,0.08483]
[1728579306068,0.444633,60421.0,60420.0,0.08483]
[1728579307073,0.443633,60421.0,60420.0,0.08483]
[1728579307784,0.443633,60421.0,60420.0,0.08283]
[1728579308576,0.445633,60421.0,60420.0,0.08283]
[1728579309165,0.3628,60421.0,60420.0,0.08283]
[1728579309362,0.3608,60421.0,60420.0,0.08283]
[1728579309669,0.001,60421.0,60420.0,0.13229455]
[1728579309861,0.3608,60426.0,60420.0,0.27283]
[1728579310063,0.083696,60432.0,60431.0,0.082817]
[1728579310270,0.082816,60432.0,60431.0,0.082817]
[1728579310570,0.3608,60435.0,60431.0,0.082817]
[1728579310768,0.443612,60435.0,60434.0,0.082813]
[1728579311267,0.082818,60432.0,60431.0,0.082816]
[1728579311468,0.272818,60432.0,60431.0,0.082816]
[1728579312472,0.172818,60432.0,60431.0,0.082816]
[1728579312781,0.34678526,60432.0,60431.0,0.082816]
[1728579313169,0.21637772,60432.0,60431.0,0.082816]
[1728579313478,0.003,60432.0,60431.0,0.272816]
[1728579313977,0.04355744,60432.0,60431.0,0.272816]
[1728579314377,0.11425525,60433.0,60432.0,0.082816]
[1728579314769,0.11425525,60438.0,60437.0,0.082809]
[1728579314972,0.1042,60449.0,60437.0,0.082809]
[1728579314973,0.13060002,60445.0,60441.0,0.082803]
[1728579315180,0.0332402,60445.0,60444.0,0.633599]
[1728579315376,0.11424271,60448.0,60444.0,0.443599]
[1728579315571,0.11424271,60448.0,60447.0,0.082795]
[1728579315879,0.272794,60448.0,60447.0,0.082795]
[1728579316478,0.40339402,60448.0,60447.0,0.082795]
[1728579316681,0.272794,60448.0,60447.0,0.082795]
[1728579316874,0.282794,60448.0,60447.0,0.083795]
[1728579317186,0.2,60448.0,60447.0,0.083795]
[1728579318379,0.205,60448.0,60447.0,0.083795]
[1728579319385,0.015,60448.0,60447.0,0.083795]
[1728579319675,0.015,60448.0,60447.0,0.13337072]
[1728579320579,0.015,60448.0,60447.0,0.32337072]
[1728579321777,0.015,60448.0,60447.0,0.273795]
[1728579322379,0.015,60448.0,60447.0,0.326795]
[1728579322980,0.015,60448.0,60447.0,1.423075]
[1728579323286,0.015,60448.0,60447.0,1.48876583]
[1728579323470,0.0004,60450.0,60447.0,1.423075]
[1728579323678,0.0004,60450.0,60449.0,0.13221153]
[1728579323978,0.0004,60450.0,60449.0,0.13221134]
[1728579325075,0.0054,60450.0,60449.0,0.13221134]
[1728579325486,0.0054,60450.0,60449.0,0.082792]
[1728579325688,0.0134,60450.0,60449.0,0.082792]
[1728579325985,0.0084,60450.0,60449.0,0.082792]
[1728579326198,0.0074,60450.0,60449.0,0.083792]
[1728579326389,0.0074,60450.0,60449.0,0.580072]
[1728579326883,0.0074,60450.0,60449.0,0.083792]
[1728579327277,0.1974,60450.0,60449.0,0.083792]
[1728579329281,0.0074,60450.0,60449.0,0.083792]
[1728579334798,0.13800002,60450.0,60449.0,0.083792]
[1728579334998,0.17854443,60450.0,60449.0,0.083792]
[1728579335198,0.49153541,60450.0,60449.0,0.001]
[1728579335392,0.54235931,60450.0,60449.0,0.001]
[1728579335593,0.64685931,60450.0,60449.0,0.001]
[1728579335898,0.082801,60443.0,60442.0,0.082801]
[1728579336099,0.72496931,60443.0,60442.0,0.082801]
[1728579336395,0.88087882,60443.0,60430.0,0.3608]
[1728579336604,0.14647651,60436.0,60432.0,0.082815]
[1728579336907,0.14652766,60436.0,60431.0,0.1924813]
[1728579337205,0.09137728,60435.0,60431.0,0.2074192]
[1728579337409,0.19,60435.0,60434.0,0.082813]
[1728579337601,0.44417958,60435.0,60434.0,0.082813]
[1728579337796,0.49607958,60435.0,60434.0,0.082813]
[1728579338002,0.33328199,60435.0,60434.0,0.082813]
[1728579338603,0.14328199,60435.0,60434.0,0.082813]
[1728579339004,0.2159048,60435.0,60434.0,0.082813]
[1728579339197,0.39522096,60435.0,60434.0,0.082813]
[1728579339397,0.38298643,60435.0,60434.0,0.082813]
[1728579339810,0.20367606,60435.0,60434.0,0.082813]
[1728579340006,0.20267606,60435.0,60434.0,0.082813]
[1728579340705,0.09138199,60435.0,60434.0,0.082813]
[1728579341216,0.09138199,60435.0,60434.0,0.085813]
[1728579341415,0.09138351,60441.0,60440.0,0.082805]
[1728579341618,0.09138351,60441.0,60434.0,0.003]
[1728579341619,0.17942065,60436.0,60434.0,0.003]
[1728579341806,0.33020194,60435.0,60434.0,0.082813]
[1728579342117,0.18042065,60435.0,60434.0,0.086813]
[1728579342314,0.27180584,60435.0,60434.0,0.086813]
[1728579342615,0.15178129,60435.0,60434.0,0.086813]
[1728579342801,0.001,60435.0,60434.0,0.086813]
[1728579343406,0.001,60435.0,60434.0,0.087813]
[1728579343804,0.083812,60435.0,60434.0,0.087813]
[1728579344016,0.082812,60435.0,60434.0,0.086813]
[1728579344403,0.082812,60435.0,60434.0,0.004]
[1728579344607,0.272812,60435.0,60434.0,0.004]
[1728579344914,0.272812,60435.0,60431.0,0.08456845]
[1728579344915,0.082816,60432.0,60431.0,0.06608407]
[1728579345111,0.082817,60431.0,60430.0,0.00124]
[1728579345412,0.082825,60425.0,60424.0,0.06728407]
[1728579345604,0.3608,60425.0,60421.0,0.06608407]
[1728579345807,0.082829,60422.0,60421.0,0.06608407]
[1728579346114,0.19,60423.0,60422.0,0.082829]
[1728579346416,0.082829,60422.0,60421.0,0.06608407]
[1728579346613,0.19,60423.0,60421.0,0.08283]
[1728579346911,0.19,60423.0,60419.0,0.06608407]
[1728579346912,0.082831,60421.0,60419.0,0.06608407]
[1728579347107,0.0004,60420.0,60419.0,0.14891707]
[1728579347314,0.0004,60420.0,60419.0,0.14885463]
[1728579347627,0.0004,60420.0,60419.0,0.082833]
[1728579348004,0.0004,60420.0,60411.0,0.08208715]
[1728579348005,0.082839,60416.0,60411.0,0.08208715]
[1728579348203,0.19,60411.0,60410.0,0.082846]
[1728579348616,0.19,60414.0,60413.0,0.082841]
[1728579349015,0.27284,60414.0,60413.0,0.082841]
[1728579351114,0.27384,60414.0,60413.0,0.085841]
[1728579351820,0.27284,60414.0,60413.0,0.082841]
[1728579352024,0.08384,60414.0,60413.0,0.085841]
[1728579352223,0.001,60414.0,60413.0,0.085841]
[1728579353718,0.001,60414.0,60413.0,0.003]
[1728579353719,0.08384,60414.0,60413.0,0.003]
[1728579354219,0.08384,60414.0,60413.0,0.085842]
[1728579354522,0.08484,60414.0,60413.0,0.097842]
[1728579354918,0.08484,60414.0,60413.0,0.092842]
[1728579359310,0.08484,60414.0,60413.0,0.01]
[1728579361727,0.18484,60414.0,60413.0,0.01]
[1728579361915,0.082854,60405.0,60404.0,0.082854]
[1728579362112,0.19,60406.0,60404.0,0.082854]
[1728579362313,0.0004,60405.0,60404.0,0.082854]
[1728579362929,0.083254,60405.0,60404.0,0.082854]
[1728579363528,0.083254,60405.0,60404.0,0.083854]
[1728579363824,0.083254,60405.0,60404.0,0.089854]
[1728579364323,0.084254,60405.0,60404.0,0.089854]
[1728579364630,0.0024,60405.0,60404.0,0.089854]
[1728579365926,0.085253,60405.0,60404.0,0.089854]
[1728579369230,0.275253,60405.0,60404.0,0.007]
[1728579369423,0.375253,60405.0,60404.0,0.007]
[1728579370235,0.0024,60405.0,60404.0,0.089854]
[1728579371940,0.0024,60405.0,60404.0,1.137294]
[1728579372234,0.3608,60422.0,60414.0,0.27284]
[1728579372235,0.082835,60418.0,60414.0,0.27284]
[1728579372738,0.082835,60418.0,60414.0,0.08284]
[1728579372933,0.44363,60422.0,60414.0,0.19]
[1728579373132,0.20510523,60421.0,60415.0,0.18864414]
[1728579373327,0.272836,60418.0,60417.0,0.082836]
[1728579373528,0.082838,60416.0,60415.0,0.08244414]
[1728579373731,0.083839,60415.0,60414.0,0.005]
[1728579373931,0.274239,60415.0,60414.0,0.005]
[1728579374434,0.274239,60415.0,60406.0,0.09893296]
[1728579374435,1.489799,60415.0,60409.0,0.08244414]
[1728579374633,0.082847,60409.0,60408.0,0.08244414]
[1728579374939,0.273247,60409.0,60408.0,0.08244414]
[1728579375137,0.273247,60409.0,60406.0,0.08244414]
[1728579375347,0.27325,60407.0,60406.0,0.08244414]
[1728579375545,0.27325,60407.0,60406.0,0.12386465]
[1728579376131,0.27325,60407.0,60406.0,0.08271229]
[1728579376341,0.86989,60407.0,60406.0,0.08271229]
[1728579376546,1.46989,60407.0,60404.0,0.08312707]
[1728579376730,0.444053,60405.0,60404.0,0.08312707]
[1728579376936,0.544053,60405.0,60404.0,0.08312707]
[1728579377233,0.544053,60405.0,60404.0,0.16598107]
[1728579377646,0.544053,60405.0,60404.0,0.20655091]
[1728579377944,0.545053,60405.0,60404.0,0.16898107]
[1728579378147,0.545053,60405.0,60404.0,0.29242026]
[1728579378443,0.545053,60405.0,60404.0,0.16898107]
[1728579378641,0.545053,60405.0,60404.0,0.08612707]
[1728579378942,0.545053,60405.0,60404.0,0.0034]
[1728579379145,0.546053,60405.0,60404.0,0.0054]
[1728579380534,0.546053,60405.0,60394.0,0.082867]
[1728579380535,0.082866,60395.0,60394.0,0.082867]
[1728579380738,0.634066,60395.0,60394.0,0.082867]
[1728579381744,0.635066,60395.0,60394.0,0.084867]
[1728579381941,1.74892,60395.0,60383.0,0.09893296]
[1728579382150,0.19,60388.0,60387.0,0.082877]
[1728579384144,0.191,60388.0,60387.0,0.082877]
[1728579384342,0.273876,60388.0,60387.0,0.082877]
[1728579385368,0.273876,60388.0,60378.0,0.20619596]
[1728579385369,0.383876,60388.0,60377.0,0.36164]
[1728579385540,0.443683,60383.0,60382.0,0.082884]
[1728579385846,0.082883,60383.0,60382.0,0.082884]
[1728579386639,0.082879,60386.0,60385.0,0.082879]
[1728579386845,0.002,60388.0,60387.0,0.082877]
[1728579387057,0.002,60388.0,60387.0,0.20660232]
[1728579387240,0.082873,60391.0,60390.0,0.082873]
[1728579387738,0.3608,60394.0,60389.0,0.19]
[1728579387943,0.3608,60394.0,60393.0,0.082869]
[1728579388244,0.3608,60394.0,60393.0,0.20635311]
[1728579388445,0.0004,60395.0,60394.0,0.082868]
[1728579388647,0.26368419,60401.0,60400.0,0.08286]
[1728579388845,0.26368419,60401.0,60400.0,0.27286]
[1728579389951,0.26368419,60401.0,60400.0,0.08286]
[1728579391050,0.22222647,60401.0,60400.0,0.08286]
[1728579391241,0.30508447,60401.0,60400.0,0.08286]
[1728579393049,0.19,60402.0,60400.0,0.08286]
[1728579393050,0.0004,60405.0,60404.0,0.082854]
[1728579393254,0.0004,60405.0,60404.0,0.633654]
[1728579393443,0.0004,60407.0,60406.0,0.082851]